bitfinex/quotes_BTCUSD_20241216
["timestamp","ask_amount","ask_price","bid_price","bid_amount"]
[1734312035103,8.63e-05,105420.0,105410.0,0.3019695]
[1734312036896,8.63e-05,105420.0,105410.0,0.30196175]
[1734312038374,0.55236128,105450.0,105440.0,0.318781]
[1734312038589,0.64665198,105450.0,105440.0,0.87149486]
[1734312038737,0.64665198,105450.0,105440.0,0.51033092]
[1734312038946,0.64665198,105450.0,105440.0,0.30173454]
[1734312039149,0.64665198,105450.0,105440.0,0.83184274]
[1734312039150,0.0942907,105450.0,105440.0,0.83184274]
[1734312039426,0.0942907,105450.0,105440.0,0.93485338]
[1734312039623,0.0948546,105450.0,105440.0,0.76017797]
[1734312039957,0.0948546,105450.0,105440.0,0.31994949]
[1734312040170,0.0948546,105450.0,105440.0,0.22329675]
[1734312040585,0.0948546,105450.0,105440.0,0.31994949]
[1734312040784,0.0948546,105450.0,105440.0,0.32502597]
[1734312041175,0.0948546,105450.0,105440.0,0.30681683]
[1734312041593,0.0948546,105450.0,105440.0,0.11713583]
[1734312041806,0.25507235,105450.0,105440.0,0.01540661]
[1734312041964,0.2259546,105450.0,105440.0,0.01540661]
[1734312043515,0.2259546,105450.0,105440.0,0.0154052]
[1734312043516,0.34215613,105450.0,105440.0,0.0154052]
[1734312044487,0.4610176,105450.0,105440.0,0.0154052]
[1734312044689,0.4110176,105450.0,105440.0,0.00592508]
[1734312044916,0.50154444,105450.0,105440.0,0.00592508]
[1734312045120,0.2713546,105450.0,105440.0,0.00592508]
[1734312045316,0.2713546,105450.0,105440.0,0.0153052]
[1734312046219,0.4610176,105450.0,105440.0,0.0153052]
[1734312046854,0.1759546,105450.0,105440.0,0.2049862]
[1734312047057,0.1759546,105450.0,105440.0,0.21683636]
[1734312047264,0.0948546,105450.0,105440.0,0.21683636]
[1734312047850,0.0949409,105450.0,105440.0,0.21683636]
[1734312049262,0.0949409,105450.0,105440.0,0.34401757]
[1734312049460,0.0949409,105450.0,105440.0,0.42880504]
[1734312049831,0.0949409,105450.0,105440.0,0.91136501]
[1734312050032,0.0949409,105450.0,105440.0,0.09663763]
[1734312050285,0.16250177,105450.0,105440.0,0.11277362]
[1734312050477,0.0949409,105450.0,105440.0,0.2973851]
[1734312052594,0.0949409,105450.0,105440.0,0.28553494]
[1734312052830,0.0949409,105450.0,105440.0,0.29738323]
[1734312053037,0.0949409,105450.0,105440.0,0.30678924]
[1734312053241,0.0949409,105450.0,105440.0,0.40851926]
[1734312053451,0.21546014,105450.0,105440.0,0.01184839]
[1734312053660,0.21546014,105450.0,105440.0,0.189681]
[1734312054076,0.21546014,105450.0,105430.0,0.48107405]
[1734312054291,0.0942907,105440.0,105430.0,0.48107405]
[1734312054460,0.0942907,105440.0,105430.0,0.47600586]
[1734312054461,0.11583671,105440.0,105430.0,0.47600586]
[1734312054705,0.11583671,105440.0,105430.0,0.48726959]
[1734312054922,0.11583671,105440.0,105430.0,0.21281112]
[1734312055127,0.16583671,105440.0,105430.0,0.01184839]
[1734312055331,0.16583671,105440.0,105420.0,0.60829526]
[1734312055530,0.16583671,105440.0,105420.0,0.29140805]
[1734312055661,0.35551771,105440.0,105420.0,0.28633986]
[1734312055864,0.16583671,105440.0,105420.0,0.46420747]
[1734312056207,0.16583671,105440.0,105420.0,0.286342]
[1734312056208,0.35551871,105440.0,105420.0,0.286342]
[1734312056712,0.54520971,105440.0,105420.0,0.096638]
[1734312056943,0.5914,105430.0,105410.0,0.476085]
[1734312057163,0.0942907,105420.0,105410.0,0.39129753]
[1734312057340,0.0942907,105420.0,105410.0,0.01185053]
[1734312057514,0.0942907,105420.0,105400.0,0.41373481]
[1734312057716,0.0942907,105420.0,105400.0,0.4762936]
[1734312058215,0.0942907,105420.0,105410.0,0.189735]
[1734312058417,0.18846596,105420.0,105410.0,0.189735]
[1734312059330,0.0942907,105420.0,105410.0,0.189735]
[1734312059986,0.5414,105430.0,105420.0,0.189717]
[1734312060137,0.6356907,105430.0,105420.0,0.21105049]
[1734312061136,0.0942907,105430.0,105420.0,0.21105049]
[1734312061338,0.0942907,105430.0,105420.0,0.20156871]
[1734312061566,0.13498652,105430.0,105420.0,0.21105008]
[1734312061713,0.0942907,105430.0,105420.0,0.21105008]
[1734312061940,0.0942907,105430.0,105420.0,0.19919837]
[1734312062303,0.0942907,105430.0,105420.0,0.21697593]
[1734312066309,0.0942907,105430.0,105420.0,0.00948137]
[1734312066508,0.1442907,105430.0,105420.0,0.00948137]
[1734312066823,0.45506496,105430.0,105420.0,0.00948137]
[1734312067038,0.05,105420.0,105410.0,0.00965397]
[1734312067238,0.4121077,105420.0,105410.0,0.00965397]
[1734312067436,0.4121077,105420.0,105410.0,0.0001726]
[1734312067663,0.50628296,105420.0,105410.0,0.0001726]
[1734312069570,0.50628296,105420.0,105410.0,6e-07]
[1734312069571,0.67180984,105420.0,105410.0,6e-07]
[1734312069774,0.313635,105410.0,105400.0,0.0001726]
[1734312069974,0.5869144,105410.0,105400.0,0.0001726]
[1734312071006,0.9993257,105410.0,105400.0,0.0001726]
[1734312071240,0.63585977,105410.0,105400.0,0.1899256]
[1734312071445,0.63585977,105410.0,105400.0,0.0001726]
[1734312071648,0.68585977,105410.0,105400.0,0.0001726]
[1734312071850,0.45387003,105410.0,105400.0,0.0001726]
[1734312072568,0.50387003,105410.0,105400.0,0.0001726]
[1734312073363,0.58528347,105410.0,105400.0,0.0001726]
[1734312075238,0.1259,105370.0,105360.0,0.0001726]
[1734312075435,0.4099977,105370.0,105360.0,0.0001726]
[1734312075637,0.51327185,105370.0,105360.0,0.0001726]
[1734312076150,0.42845841,105370.0,105360.0,0.0001726]
[1734312076709,0.55917185,105370.0,105360.0,0.0001726]
[1734312078307,0.47435841,105370.0,105360.0,0.0001726]
[1734312078527,0.55917185,105370.0,105360.0,0.0001726]
[1734312078989,0.57822223,105370.0,105360.0,0.0001726]
[1734312080011,0.42494808,105370.0,105360.0,0.0001726]
[1734312080384,0.42926662,105370.0,105360.0,0.0001726]
[1734312080656,0.44298186,105370.0,105360.0,0.0001726]
[1734312081159,0.44708186,105370.0,105360.0,0.0001726]
[1734312081280,0.42118186,105370.0,105360.0,0.0001726]
[1734312081474,0.50125995,105370.0,105360.0,0.00610293]
[1734312081907,1.04265995,105370.0,105360.0,0.00610293]
[1734312082574,0.96258186,105370.0,105360.0,0.00610293]
[1734312082909,0.96258186,105370.0,105360.0,0.01558699]
[1734312083304,0.91258186,105370.0,105360.0,0.01558699]
[1734312083560,0.4559953,105370.0,105360.0,0.01558699]
[1734312083712,0.5327953,105370.0,105360.0,0.01558699]
[1734312083915,0.62403473,105370.0,105360.0,0.01558699]
[1734312084116,0.62403473,105370.0,105360.0,0.00610293]
[1734312084342,0.53922129,105370.0,105360.0,0.00610293]
[1734312084503,0.42118186,105370.0,105360.0,0.01559162]
[1734312085406,0.5059953,105370.0,105360.0,0.02744935]
[1734312085599,0.5059953,105370.0,105360.0,0.01559162]
[1734312085812,0.4559953,105370.0,105360.0,0.01559162]
[1734312086041,0.53955473,105370.0,105360.0,0.01559162]
[1734312086242,0.53955473,105370.0,105360.0,0.01559197]
[1734312086381,0.53955473,105370.0,105360.0,0.01559207]
[1734312087006,0.53955473,105370.0,105360.0,0.00610293]
[1734312087495,0.53955473,105370.0,105360.0,0.0155917]
[1734312087870,0.58955473,105370.0,105360.0,0.0155917]
[1734312088079,0.53955473,105370.0,105360.0,0.0155917]
[1734312088687,0.61925473,105370.0,105360.0,0.00610293]
[1734312089631,0.61925473,105370.0,105360.0,0.01559201]
[1734312090060,0.61925473,105370.0,105360.0,0.01559196]
[1734312090467,0.61925473,105370.0,105360.0,0.01559201]
[1734312091030,0.61925473,105370.0,105360.0,0.0001726]
[1734312091232,0.61925473,105370.0,105360.0,0.015592]
[1734312093437,0.56925473,105370.0,105360.0,0.015592]
[1734312094630,0.70256817,105370.0,105360.0,0.00610314]
[1734312094839,0.266825,105360.0,105350.0,0.0001726]
[1734312095044,0.5401044,105360.0,105350.0,0.00966295]
[1734312095246,0.54437126,105360.0,105350.0,0.00966295]
[1734312096342,0.54437126,105360.0,105350.0,0.02152559]
[1734312097963,0.54437126,105360.0,105350.0,0.00966295]
[1734312098926,0.54437126,105360.0,105350.0,0.0001726]
[1734312101253,0.45955782,105360.0,105350.0,0.0001726]
[1734312101508,0.54437126,105360.0,105350.0,0.00966315]
[1734312102321,0.54437126,105360.0,105350.0,0.0001726]
[1734312102526,0.54437126,105360.0,105350.0,0.00966321]
[1734312102735,0.54437126,105360.0,105350.0,0.0001726]
[1734312102940,0.54437126,105360.0,105350.0,0.0096632]
[1734312103573,0.43255782,105360.0,105350.0,0.0096632]
[1734312104200,0.28838256,105360.0,105350.0,0.0096632]
[1734312104433,0.33838256,105360.0,105350.0,0.0096632]
[1734312106017,0.14855756,105360.0,105350.0,0.0096632]
[1734312106222,0.65221062,105370.0,105350.0,0.0096632]
[1734312106436,0.09855533,105360.0,105350.0,0.0096632]
[1734312106657,0.0942907,105360.0,105350.0,0.0096632]
[1734312106830,0.0942907,105360.0,105350.0,0.20543633]
[1734312107028,0.0942907,105360.0,105350.0,0.21041885]
[1734312108072,0.0942907,105360.0,105350.0,0.20543633]
[1734312109290,0.0942907,105360.0,105350.0,0.1900156]
[1734312109498,0.0942907,105360.0,105350.0,0.20543342]
[1734312110980,0.0942907,105360.0,105350.0,0.21041481]
[1734312112281,0.0942907,105360.0,105350.0,0.20543342]
[1734312112703,0.0942907,105360.0,105350.0,0.28978509]
[1734312113219,0.81397362,105370.0,105350.0,0.52881209]
[1734312113220,0.03276562,105370.0,105350.0,0.52881209]
[1734312113422,0.11334108,105370.0,105350.0,0.79425509]
[1734312113627,0.11334108,105370.0,105350.0,0.9207826]
[1734312113825,0.11334108,105370.0,105350.0,1.23925288]
[1734312114029,0.16334108,105370.0,105350.0,1.04940988]
[1734312114234,0.35314908,105370.0,105350.0,0.85956688]
[1734312114465,0.89454908,105370.0,105350.0,0.85471558]
[1734312115051,0.89454908,105370.0,105350.0,0.5410966]
[1734312115216,0.89454908,105370.0,105350.0,0.8547192]
[1734312115419,0.89454908,105370.0,105350.0,0.25132751]
[1734312115626,0.6356907,105370.0,105350.0,0.44115551]
[1734312115797,0.6356907,105370.0,105350.0,0.63098751]
[1734312116031,0.0942907,105370.0,105350.0,1.13457797]
[1734312116238,0.01355811,105380.0,105350.0,0.61508497]
[1734312116441,0.09445967,105380.0,105360.0,0.31633451]
[1734312116667,0.09445967,105380.0,105360.0,0.50614651]
[1734312116836,0.09445967,105380.0,105360.0,1.00971497]
[1734312117046,0.09445967,105380.0,105360.0,0.69595751]
[1734312117261,0.09445967,105380.0,105360.0,0.50614551]
[1734312117595,0.28424967,105380.0,105360.0,0.82083792]
[1734312118082,0.35619526,105380.0,105360.0,0.82083792]
[1734312118895,8.64e-05,105370.0,105360.0,0.82083792]
[1734312119152,0.91039754,105370.0,105350.0,0.29763935]
[1734312119351,0.189825,105360.0,105350.0,0.44164266]
[1734312119553,0.37829096,105360.0,105350.0,0.0001728]
[1734312124294,0.91969096,105360.0,105350.0,0.0001728]
[1734312125536,1.10953196,105360.0,105340.0,0.09460449]
[1734312125734,0.0942907,105350.0,105340.0,0.09460449]
[1734312125933,0.2841337,105350.0,105340.0,0.09460449]
[1734312126336,0.37830896,105350.0,105340.0,0.00948856]
[1734312126685,0.56816296,105350.0,105330.0,0.44915452]
[1734312126890,0.2841337,105350.0,105330.0,0.96272991]
[1734312127110,0.2841337,105350.0,105330.0,0.96272793]
[1734312127322,0.2841337,105350.0,105330.0,0.83506988]
[1734312127531,0.2841337,105350.0,105330.0,0.84100049]
[1734312127735,0.29479498,105350.0,105330.0,0.84100049]
[1734312127938,0.2841337,105350.0,105330.0,0.84099314]
[1734312128467,0.4739857,105350.0,105330.0,0.52677512]
[1734312128683,1.02908579,105360.0,105340.0,0.266761]
[1734312128910,1.12337649,105360.0,105340.0,0.28218064]
[1734312129401,1.12337649,105360.0,105340.0,0.10053977]
[1734312129402,1.31321449,105360.0,105340.0,0.10053977]
[1734312129643,0.2841337,105350.0,105340.0,0.10053977]
[1734312129859,0.56816396,105350.0,105340.0,0.01541983]
[1734312130242,0.56816396,105350.0,105340.0,0.0059307]
[1734312130441,0.2841337,105350.0,105340.0,0.01541983]
[1734312133009,1.0153897,105350.0,105340.0,0.01542016]
[1734312135702,1.22620314,105350.0,105340.0,0.01542016]
[1734312135911,0.68480314,105350.0,105340.0,0.00593083]
[1734312137574,0.68480314,105350.0,105310.0,0.38817412]
[1734312137575,0.05,105330.0,105310.0,0.38817412]
[1734312137787,0.25640414,105320.0,105310.0,0.00610517]
[1734312137960,0.49150114,105320.0,105310.0,0.00610517]
[1734312138167,0.49150114,105320.0,105310.0,0.0001728]
[1734312138534,0.4066877,105320.0,105310.0,0.0001728]
[1734312138811,0.4114877,105320.0,105310.0,0.00621311]
[1734312139011,0.3614877,105320.0,105310.0,0.00621311]
[1734312139201,0.49630114,105320.0,105310.0,0.00621311]
[1734312139563,0.49630114,105320.0,105310.0,0.00027995]
[1734312139564,0.56101828,105320.0,105310.0,0.00027995]
[1734312139898,0.57383064,105320.0,105310.0,0.00027995]
[1734312140765,0.60864408,105320.0,105310.0,0.00027995]
[1734312140936,0.70281934,105320.0,105310.0,0.00027995]
[1734312141091,0.05,105300.0,105290.0,0.0001726]
[1734312141292,0.57965058,105300.0,105290.0,0.0001726]
[1734312142727,0.57965058,105300.0,105270.0,0.0001726]
[1734312142728,0.189995,105270.0,105250.0,0.0773]
[1734312142982,0.85316654,105270.0,105250.0,0.08323515]
[1734312143180,0.72050414,105260.0,105250.0,0.00593515]
[1734312143401,0.91050914,105260.0,105240.0,0.00610775]
[1734312143608,0.190023,105250.0,105240.0,0.00610849]
[1734312143738,0.2843137,105250.0,105240.0,0.00610849]
[1734312143934,0.0942907,105250.0,105240.0,0.00610849]
[1734312144148,0.921424,105260.0,105240.0,0.0066728]
[1734312144455,0.2843137,105250.0,105240.0,0.0066728]
[1734312145247,0.2843137,105250.0,105240.0,0.00073691]
[1734312145991,0.36912714,105250.0,105240.0,0.00073691]
[1734312146138,0.45397225,105250.0,105240.0,0.00073691]
[1734312146840,0.58037225,105250.0,105240.0,0.00073691]
[1734312148606,0.18342025,105250.0,105240.0,0.00073691]
[1734312148801,0.15702025,105250.0,105240.0,0.00073691]
[1734312149020,0.10702025,105250.0,105240.0,0.00073691]
[1734312149451,0.02748084,105270.0,105240.0,0.19076391]
[1734312149651,0.0942907,105260.0,105240.0,0.38673927]
[1734312150063,0.5414,105270.0,105250.0,0.190023]
[1734312150277,0.5414,105270.0,105260.0,0.190005]
[1734312150485,0.5414,105270.0,105260.0,0.19594136]
[1734312150998,0.6898307,105270.0,105260.0,0.00593636]
[1734312151199,0.6356907,105270.0,105250.0,0.44545542]
[1734312151409,0.5414,105270.0,105260.0,0.190005]
[1734312151612,0.01902676,105290.0,105270.0,0.379949]
[1734312151613,0.5414,105290.0,105270.0,0.379949]
[1734312151811,0.0942907,105290.0,105280.0,0.189969]
[1734312152049,0.0942907,105290.0,105280.0,0.19590536]
[1734312152451,0.5414,105310.0,105290.0,0.189951]
[1734312152638,0.6356907,105310.0,105290.0,0.379891]
[1734312152841,0.1442907,105300.0,105280.0,0.01543006]
[1734312153013,0.1442907,105300.0,105270.0,0.189973]
[1734312153212,0.1442907,105300.0,105280.0,0.00593372]
[1734312153415,0.23846596,105300.0,105280.0,0.00593372]
[1734312154408,0.18846596,105300.0,105280.0,0.00593372]
[1734312154826,0.0942907,105300.0,105280.0,0.00593372]
[1734312155090,0.0942907,105300.0,105280.0,0.189958]
[1734312155259,0.0944637,105300.0,105280.0,0.39534078]
[1734312155670,0.0944637,105300.0,105280.0,0.58529878]
[1734312156334,0.000173,105300.0,105290.0,0.189951]
[1734312156745,0.000173,105300.0,105290.0,0.20537878]
[1734312157306,0.000173,105300.0,105290.0,0.25537878]
[1734312157509,0.54156881,105310.0,105290.0,0.25537878]
[1734312157738,0.63585951,105310.0,105300.0,0.189933]
[1734312157908,0.63585951,105310.0,105300.0,0.19942702]
[1734312158110,0.63585951,105310.0,105300.0,0.20536078]
[1734312158521,0.00016881,105310.0,105300.0,0.20536078]
[1734312159698,7.101e-05,105310.0,105300.0,0.20536078]
[1734312161810,0.09436171,105310.0,105300.0,0.01542778]
[1734312164390,0.17692758,105310.0,105290.0,0.379886]
[1734312164610,0.17692758,105310.0,105290.0,0.4001743]
[1734312164785,0.17692758,105310.0,105290.0,0.5901153]
[1734312164988,0.17692758,105310.0,105300.0,0.189933]
[1734312165209,0.17692758,105310.0,105300.0,0.01542526]
[1734312165416,7.101e-05,105310.0,105300.0,0.20535826]
[1734312166150,7.101e-05,105310.0,105300.0,0.2102213]
[1734312166516,7.101e-05,105310.0,105300.0,0.431012]
[1734312166692,0.00024401,105310.0,105300.0,0.42614896]
[1734312167298,0.00024401,105310.0,105300.0,0.49511901]
[1734312167489,0.00024401,105310.0,105300.0,0.51053964]
[1734312167690,0.8625304,105350.0,105320.0,0.429784]
[1734312167924,0.0942907,105340.0,105320.0,0.44520463]
[1734312168536,0.0942907,105340.0,105320.0,0.25530863]
[1734312169619,0.2841517,105340.0,105320.0,0.01542063]
[1734312169766,0.189879,105330.0,105320.0,0.01542063]
[1734312169971,0.33657277,105330.0,105320.0,0.00593101]
[1734312170197,0.0942907,105330.0,105320.0,0.00593101]
[1734312170597,0.2841697,105330.0,105320.0,0.00593101]
[1734312171602,1.03135228,105330.0,105320.0,0.00593101]
[1734312173753,0.8719697,105330.0,105320.0,0.00593252]
[1734312174165,0.731303,105320.0,105290.0,0.62467235]
[1734312174285,0.0942907,105310.0,105290.0,0.64009703]
[1734312174489,0.1104818,105310.0,105290.0,0.45015603]
[1734312175288,0.11039015,105310.0,105290.0,0.45015603]
[1734312175503,0.11039015,105310.0,105290.0,0.44586199]
[1734312175703,0.11039015,105310.0,105290.0,0.64066234]
[1734312175904,0.09419905,105310.0,105290.0,0.45072034]
[1734312176146,0.09419905,105310.0,105290.0,0.64066034]
[1734312176941,0.09419905,105310.0,105290.0,0.64067164]
[1734312177185,0.09419905,105310.0,105300.0,9.78e-05]
[1734312177359,0.09419905,105310.0,105300.0,0.01552264]
[1734312177921,0.5414,105320.0,105300.0,0.20544264]
[1734312178201,0.6356907,105320.0,105300.0,0.40023413]
[1734312178405,0.0942907,105320.0,105310.0,0.189915]
[1734312178557,0.11687914,105320.0,105310.0,0.20533984]
[1734312179487,0.11687914,105320.0,105310.0,0.21020933]
[1734312179892,0.0942907,105320.0,105310.0,0.21020933]
[1734312180231,0.569623,105340.0,105320.0,0.189897]
[1734312180232,0.731274,105340.0,105320.0,0.189897]
[1734312180454,0.0942907,105330.0,105320.0,0.20532184]
[1734312180656,0.65215966,105350.0,105320.0,0.39520784]
[1734312180657,1.11837229,105350.0,105320.0,0.39520784]
[1734312180858,0.2841527,105340.0,105320.0,0.40007733]
[1734312181497,0.2841527,105340.0,105320.0,0.21018033]
[1734312181901,0.4740237,105340.0,105320.0,0.21018033]
[1734312182475,0.4433144,105340.0,105320.0,0.19581863]
[1734312182642,0.4433144,105340.0,105320.0,0.20530811]
[1734312182867,0.4433144,105340.0,105320.0,0.20530808]
[1734312183040,0.4433144,105340.0,105320.0,0.2101987]
[1734312183392,0.4433144,105340.0,105320.0,0.20530808]
[1734312183802,0.189879,105330.0,105320.0,0.0203127]
[1734312184035,0.189879,105330.0,105320.0,0.01542208]
[1734312184586,1.03483735,105330.0,105320.0,0.01542208]
[1734312185760,1.169805,105330.0,105320.0,0.01542208]
[1734312186209,1.08483735,105330.0,105320.0,0.01542208]
[1734312186413,1.17901261,105330.0,105320.0,0.00593157]
[1734312187361,0.63761261,105330.0,105320.0,0.00593157]
[1734312188704,0.65675356,105330.0,105320.0,0.00593157]
[1734312189530,0.42761065,105330.0,105320.0,0.00593157]
[1734312189733,0.5983597,105330.0,105310.0,0.379828]
[1734312189899,0.2841697,105330.0,105310.0,0.189914]
[1734312190104,0.3990267,105340.0,105320.0,0.189897]
[1734312190105,0.36200383,105340.0,105320.0,0.189897]
[1734312190306,1.18757153,105340.0,105320.0,0.00949186]
[1734312190510,1.18756953,105340.0,105320.0,0.01186445]
[1734312190737,1.18756953,105340.0,105320.0,0.01542331]
[1734312190970,0.0001728,105330.0,105320.0,0.01542331]
[1734312191210,0.2843425,105330.0,105320.0,0.01542331]
[1734312191412,0.46348541,105330.0,105320.0,0.01542331]
[1734312192811,0.59188541,105330.0,105320.0,0.01542331]
[1734312193879,0.3627425,105330.0,105320.0,0.01542331]
[1734312194028,0.2843425,105330.0,105320.0,0.01542331]
[1734312194821,0.4742345,105330.0,105300.0,0.43395505]
[1734312195022,0.189897,105320.0,105300.0,0.43395305]
[1734312195247,0.189897,105320.0,105300.0,0.51372851]
[1734312196171,0.189897,105320.0,105300.0,0.64073198]
[1734312196375,0.189897,105320.0,105300.0,0.95484579]
[1734312196573,0.189897,105320.0,105300.0,0.64073198]
[1734312197150,0.189897,105320.0,105300.0,0.95502347]
[1734312197377,0.189897,105320.0,105300.0,0.52596394]
[1734312197378,0.6375302,105320.0,105300.0,0.52596394]
[1734312197705,0.6859302,105320.0,105300.0,0.08466898]
[1734312197920,0.6859302,105320.0,105290.0,0.08580349]
[1734312197921,1.15050235,105310.0,105290.0,0.08580349]
[1734312198157,0.189933,105300.0,105290.0,0.00065071]
[1734312198301,0.2842237,105300.0,105290.0,0.00065071]
[1734312198510,0.37839896,105300.0,105290.0,0.00065071]
[1734312201461,0.46415108,105300.0,105290.0,0.00065071]
[1734312201669,1.00555108,105300.0,105290.0,0.00065071]
[1734312202062,1.05295108,105300.0,105290.0,0.00065071]
[1734312202276,0.67083426,105300.0,105290.0,0.00065071]
[1734312204252,0.51284784,105300.0,105290.0,0.00065071]
[1734312204468,0.59781549,105300.0,105290.0,0.00065071]
[1734312205389,0.68278314,105300.0,105290.0,0.00065071]
[1734312206447,0.59781549,105300.0,105290.0,0.00065071]
[1734312206707,0.68278314,105300.0,105290.0,0.00065071]
[1734312208761,0.68356761,105300.0,105290.0,0.00065071]
[1734312209009,0.64781549,105300.0,105290.0,0.00065071]
[1734312209276,0.68356761,105300.0,105290.0,0.00065071]
[1734312210303,0.68278314,105300.0,105290.0,0.00065071]
[1734312210554,0.73278314,105300.0,105290.0,0.00065071]
[1734312210817,0.68278314,105300.0,105290.0,0.00065071]
[1734312215184,0.05078447,105280.0,105250.0,0.00958323]
[1734312215360,0.05078447,105280.0,105250.0,0.00025531]
[1734312215361,0.27497265,105260.0,105250.0,0.00025531]
[1734312215564,0.91066335,105260.0,105250.0,0.00619153]
[1734312215766,0.91066335,105260.0,105250.0,0.00025531]
[1734312219124,0.8256957,105260.0,105250.0,0.00025531]
[1734312219325,0.379985,105270.0,105250.0,0.12927084]
[1734312219525,0.379985,105270.0,105250.0,0.3376965]
[1734312219734,0.379985,105270.0,105250.0,0.5277195]
[1734312219735,0.189987,105270.0,105250.0,0.5277195]
[1734312220351,0.379975,105270.0,105250.0,0.3376965]
[1734312220954,0.569977,105270.0,105250.0,0.3376965]
[1734312221153,0.379975,105270.0,105250.0,0.3376965]
[1734312222147,0.379975,105270.0,105250.0,0.1476735]
[1734312222365,0.379975,105270.0,105250.0,0.3376965]
[1734312222763,0.569977,105270.0,105250.0,0.33769635]
[1734312223617,0.569977,105270.0,105250.0,0.14767335]
[1734312225496,0.190005,105260.0,105250.0,0.14767335]
[1734312225924,0.190005,105260.0,105250.0,0.01543272]
[1734312226915,0.190005,105260.0,105250.0,0.01551912]
[1734312228733,0.91066335,105260.0,105250.0,0.01551912]
[1734312228907,0.91066335,105260.0,105250.0,0.00602206]
[1734312229110,1.00483861,105260.0,105250.0,0.00602206]
[1734312229313,1.05483861,105260.0,105250.0,0.00602206]
[1734312229523,0.53963861,105260.0,105250.0,8.64e-05]
[1734312229681,0.314041,105240.0,105230.0,0.0001728]
[1734312229882,0.578267,105240.0,105230.0,0.00628009]
[1734312230097,0.72244226,105240.0,105230.0,0.00628009]
[1734312230343,0.77244226,105240.0,105230.0,0.00034202]
[1734312231390,0.67244226,105240.0,105230.0,0.00034202]
[1734312231599,0.67244226,105240.0,105230.0,2e-08]
[1734312231803,0.314077,105220.0,105210.0,4e-07]
[1734312231956,0.314077,105220.0,105200.0,0.0001726]
[1734312231957,0.240095,105210.0,105200.0,0.0001726]
[1734312232157,0.36935335,105210.0,105200.0,0.0001726]
[1734312232379,0.36935335,105210.0,105200.0,0.00034192]
[1734312232589,0.454321,105210.0,105200.0,0.00034192]
[1734312232800,0.5688568,105210.0,105200.0,0.00034192]
[1734312232997,0.71093206,105210.0,105200.0,0.00034192]
[1734312233925,0.70076247,105210.0,105200.0,0.00034192]
[1734312238030,0.19015,105180.0,105170.0,0.00075498]
[1734312238284,0.190177,105170.0,105150.0,0.2145559]
[1734312238543,0.380357,105170.0,105150.0,0.22346719]
[1734312239333,0.380357,105170.0,105150.0,0.20861962]
[1734312239481,0.380357,105170.0,105150.0,0.19373795]
[1734312239687,0.380357,105170.0,105150.0,0.20918434]
[1734312240361,0.34991171,105190.0,105150.0,0.11327204]
[1734312240362,0.190143,105190.0,105150.0,0.11327204]
[1734312240566,0.380255,105200.0,105170.0,0.380312]
[1734312240760,0.380255,105200.0,105180.0,0.190148]
[1734312240761,0.190127,105200.0,105180.0,0.190148]
[1734312240960,0.47442626,105200.0,105180.0,0.00297043]
[1734312241096,0.5414,105210.0,105190.0,0.190121]
[1734312241297,0.731496,105210.0,105190.0,0.2085347]
[1734312241483,0.921605,105210.0,105190.0,0.0184137]
[1734312241679,0.190114,105200.0,105190.0,0.00891028]
[1734312241885,0.37857996,105200.0,105190.0,0.00891028]
[1734312242298,0.37874884,105200.0,105190.0,0.00891028]
[1734312242504,0.28457358,105200.0,105190.0,0.00891028]
[1734312242710,0.28457358,105200.0,105190.0,0.00297043]
[1734312242961,0.47470158,105200.0,105170.0,0.58888732]
[1734312243190,0.47470158,105200.0,105190.0,0.00296995]
[1734312243396,0.47470158,105200.0,105190.0,0.00593985]
[1734312243615,0.00016888,105200.0,105190.0,0.00890965]
[1734312243788,0.00016888,105200.0,105190.0,0.19904165]
[1734312243994,0.19028288,105200.0,105190.0,0.01841297]
[1734312244424,0.00016888,105200.0,105190.0,0.00890965]
[1734312244590,0.00016888,105200.0,105190.0,0.19904089]
[1734312244782,0.00016888,105200.0,105190.0,0.20854371]
[1734312245009,0.19028288,105200.0,105190.0,0.01841171]
[1734312245215,0.19028288,105200.0,105190.0,0.00890889]
[1734312245465,0.24733217,105200.0,105190.0,0.00890889]
[1734312245769,0.24733217,105200.0,105190.0,0.00593926]
[1734312245770,0.28457358,105200.0,105190.0,0.00593926]
[1734312245886,0.41047358,105200.0,105190.0,0.00890905]
[1734312246083,0.41047358,105200.0,105190.0,0.00593926]
[1734312246396,0.50464884,105200.0,105170.0,0.01544208]
[1734312246600,0.19015,105180.0,105170.0,0.01841268]
[1734312246799,0.2844407,105180.0,105170.0,0.00890986]
[1734312247605,0.2844407,105180.0,105170.0,0.00593991]
[1734312247800,0.2844407,105180.0,105170.0,0.00891024]
[1734312247984,0.2844407,105180.0,105170.0,0.00297033]
[1734312248187,0.2844407,105180.0,105170.0,0.00891094]
[1734312248188,0.2960483,105180.0,105170.0,0.00891094]
[1734312248461,0.2844407,105180.0,105170.0,0.00891094]
[1734312250245,0.93374638,105190.0,105170.0,0.21342271]
[1734312250543,0.48663708,105190.0,105170.0,0.21342271]
[1734312250986,0.48663708,105190.0,105170.0,0.21045198]
[1734312251327,0.4745827,105190.0,105170.0,0.40359003]
[1734312252527,0.85759388,105200.0,105170.0,0.40359003]
[1734312252730,0.00016888,105200.0,105180.0,0.38124069]
[1734312252865,0.00016888,105200.0,105180.0,0.40440842]
[1734312253067,0.00016888,105200.0,105180.0,0.39965633]
[1734312253068,0.19028388,105200.0,105180.0,0.39965633]
[1734312253267,0.19028388,105200.0,105180.0,0.40440755]
[1734312253682,0.19028388,105200.0,105180.0,0.21425755]
[1734312253683,0.38040788,105200.0,105180.0,0.21425755]
[1734312253907,0.47469858,105200.0,105180.0,0.02411755]
[1734312254136,0.44420241,105190.0,105180.0,0.02316439]
[1734312254321,1.11570241,105190.0,105180.0,0.02316439]
[1734312254519,1.30584841,105190.0,105180.0,0.01841272]
[1734312254922,1.30584841,105190.0,105180.0,0.00890938]
[1734312256330,1.32467443,105190.0,105180.0,0.00890938]
[1734312256964,1.32467443,105190.0,105180.0,0.02316692]
[1734312257110,1.11530872,105190.0,105180.0,0.02316692]
[1734312257516,1.11530872,105190.0,105180.0,0.0077223]
[1734312257715,1.11530872,105190.0,105180.0,0.02316751]
[1734312257945,1.03480872,105190.0,105180.0,0.02316751]
[1734312258353,1.03480872,105190.0,105180.0,0.02316768]
[1734312258558,1.03480872,105190.0,105180.0,0.02797764]
[1734312259330,1.0159827,105190.0,105180.0,0.02797764]
[1734312259759,1.13123478,105190.0,105180.0,0.02797764]
[1734312260372,1.14288507,105190.0,105180.0,0.02797764]
[1734312260940,1.11281811,105190.0,105180.0,0.02797764]
[1734312261137,1.02763299,105190.0,105180.0,0.02797764]
[1734312262200,1.21001811,105190.0,105180.0,0.02797796]
[1734312262386,1.16001811,105190.0,105180.0,0.023168]
[1734312262703,0.71279337,105190.0,105180.0,0.023168]
[1734312264059,0.380336,105170.0,105160.0,0.00497099]
[1734312264263,0.190186,105160.0,105140.0,8.63e-05]
[1734312264395,0.36967982,105150.0,105140.0,0.00434007]
[1734312264852,0.2844947,105150.0,105140.0,0.00434007]